Cogmind - Beta 15 @@@ ROGUE MODE // 2025.08.07 @ 13:34:33 Player: BattleBruvva Result: Self-destructed Performance ------------- Evolutions (4) 2000 Regions Visited (4) 800 Robots Destroyed (43) 215 Value Destroyed (1606) 1606 Prototype IDs (6) 120 Alien Tech Used (0) 0 Bonus (800) 800 TOTAL SCORE: 5541 Bonus ------- Registered with UFD 300 Met Optimus in HQ 500 Cogmind --------- Core Integrity 441/850 Matter 290/300 Energy 85/100 System Corruption 3% Temperature Cool (0) Movement Walking (190) Ox1 Location -6/Factory Parts ------- > --- POWER (1) -------- (None) > --- PROPULSION (4) --- Flexi-carbon Leg Improved VSS Leg > --- UTILITY (7) ------ Cooling System Improved Cooling System Coolant Injector Medium Storage Unit Enhanced Optical Array Improved Targeting Computer A0-MCA's Component Scanner > --- WEAPON (3) ------- Scythe Scythe Scythe > --- INVENTORY (10) --- Carbon-fiber Leg Flexi-carbon Leg Power Amplifier Matter Compressor (250) Improved Particle Charger Phase Shifter Improved Hacking Suite Gauss Rifle Missile Launcher Scythe Peak State ------------ > --- POWER ------------ Improved Deuterium Engine > --- PROPULSION ------- Armored Treads Flexi-carbon Leg Improved VSS Leg Improved VSS Leg > --- UTILITY ---------- Cooling System Improved Cooling System Medium Storage Unit Enhanced Optical Array Improved Targeting Computer A0-MCA's Component Scanner > --- WEAPON ----------- Scythe Scythe Scythe > --- INVENTORY -------- Advanced Treads Carbon-fiber Leg Improved VSS Leg Power Amplifier Matter Compressor Improved Particle Charger Improved Hacking Suite Gauss Rifle Missile Launcher Scythe [Rating: 58] Favorites ----------- Power Nuclear Core Engine Light Ion Engine Power Core Nuclear Core Propulsion Improved Treads Treads Improved Treads Leg Carbon-fiber Leg Wheel Wheel Utility Medium Storage Unit Device Improved Terrain Scanner Storage Medium Storage Unit Processor A0-MCA's Component Scanner Protection Hardened Medium Armor Plating Weapon Battle Rifle Energy Gun Medium Laser Energy Cannon Proton Cannon Ballistic Gun Battle Rifle Ballistic Cannon Assault Cannon Launcher Grenade Launcher Special Weapon Junk Cannon Slashing Weapon Scythe Build | -11 -10 -10 -8 -6 ------- Run | Yrd Mat Sub Scr Fac Slots Evolved 8 | . . . . 8 Power . | . . . . . Propulsion 2 | . . . . 2 Utility 5 | . . . . 5 Weapon 1 | . . . . 1 Parts Attached 59 | 9 1 7 8 34 Power 7 | 1 . 2 2 2 Engine 6 | 1 . 2 1 2 Core 1 | . . . 1 . Reactor . | . . . . . Propulsion 17 | 3 . 1 3 10 Treads 6 | 1 . 1 3 1 Leg 9 | . . . . 9 Wheel 2 | 2 . . . . Hover . | . . . . . Flight . | . . . . . Utility 18 | 2 1 3 . 12 Device 10 | 1 . 3 . 6 Storage 2 | 1 1 . . . Processor 4 | . . . . 4 Hackware . | . . . . . Protection 2 | . . . . 2 Artifact . | . . . . . Weapon 17 | 3 . 1 3 10 Energy Gun 6 | 3 . . . 3 Energy Cannon 1 | . . . . 1 Ballistic Gun 2 | . . . 1 1 Ballistic Cannon 3 | . . . 1 2 Launcher 1 | . . 1 . . Special Weapon 1 | . . . 1 . Impact Weapon . | . . . . . Slashing Weapon 3 | . . . . 3 Piercing Weapon . | . . . . . Special Melee Weapon . | . . . . . Unidentified Prototypes 1 | . . . 1 . Corrupted Parts 1 | . . . . 1 System Corruption 1 | . . . . 1 Parts Lost 20 | . . 6 . 14 Power 2 | . . 1 . 1 Propulsion 5 | . . 1 . 4 Utility 6 | . . 1 . 5 Weapon 7 | . . 3 . 4 Highest Loss Streak 4 | . . 2 . 4 To Critical Strikes . | . . . . . Average Backups 8 | 3 8 7 9 8 Power 1 | . 1 . 1 1 Propulsion 2 | 2 4 4 2 . Utility 3 | . 1 2 3 4 Weapon 2 | . 1 . 2 2 Tool/Special . | . . . . . Unused Backups 17 | . 1 . 6 10 Power 1 | . . . 1 . Propulsion 6 | . 1 . 4 1 Utility 6 | . . . 1 5 Weapon 4 | . . . . 4 Tool/Special . | . . . . . Average Slot Usage (%) 89 | . 100 92 92 79 Engine 6 | . 14 14 6 1 Core 4 | . . . 7 3 Treads 19 | . . 24 28 7 Leg 3 | . . . . 11 Wheel 2 | . 28 2 . . Device 13 | . 14 13 14 13 Storage 11 | . 14 14 14 6 Processor 4 | . . . . 14 Protection 1 | . . . . 4 Energy Gun 4 | . 28 15 . 3 Ballistic Gun 7 | . . . 13 3 Ballistic Cannon 5 | . . . 7 4 Slashing Weapon 1 | . . . . 3 Peak Build Rating 58 | 8 8 10 27 58 Average Rating 22 | 5 8 8 15 46 On Entrance 8 | . 8 8 8 20 Naked Turns . | . . . . . Heaviest Build 63 | 14 19 21 25 63 Greatest Support 50 | 26 26 40 45 50 Greatest Overweight (x) 2 | . . 1 . 2 Average Overweight (x) . | . . . . . Largest Inventory Capacity 10 | 8 10 10 10 10 Average Capacity 9 | 7 9 10 10 10 Most Carried 10 | 8 9 10 10 10 Average Carried 9 | 3 8 7 9 9 Final Capacity 10 | 8 10 10 10 10 Final Carried 10 | 8 9 9 10 10 Class Distribution -------------------- 42% | Mutant 29% | Derelict-Mutant 11% | Scavenger-Mutant 8% | Derelict-Tank 3% | Scavenger-Gunner Dominant Class ---------------- Mutant | -10/Materials Mutant | -10/Subcaves Derelict-Mutant | -8/Scraptown Scavenger-Mutant | -6/Factory Resources | -11 -10 -10 -8 -6 ----------- Run | Yrd Mat Sub Scr Fac Matter Collected 1656 | 290 20 133 294 919 Remotely . | . . . . . Salvage Created 1942 | 130 144 214 . 1454 Parts 90 | 7 4 18 . 61 Haulers Intercepted 1 | . 1 . . . Recyclers Shooed 2 | . 1 . . 1 Parts Field Recycled . | . . . . . Retrieved Matter . | . . . . . Parts Self-Destructed 10 | . . 10 . . Prevented . | . . . . . Kills | -11 -10 -10 -8 -6 ------- Run | Yrd Mat Sub Scr Fac Combat Hostiles Destroyed 32 | . 2 9 . 21 Melee 3 | . . . . 3 Guns 9 | . 1 3 . 5 Cannons 12 | . . . . 12 AOE 6 | . . 6 . . Classes Destroyed 15 | 2 2 3 . 8 Worker 2 | . . . . 2 Builder 1 | . . . . 1 Tunneler 2 | 2 . . . . Hauler 1 | . 1 . . . Recycler 4 | 1 . . . 3 Operator 1 | . . . . 1 Swarmer 4 | . . 4 . . Grunt 13 | . 2 2 . 9 Sentry 2 | . . . . 2 Specialist 2 | . . . . 2 Hunter 3 | . . . . 3 Programmer 4 | . . . . 4 Heavy 1 | . . . . 1 Artisan 1 | . . 1 . . Subdweller 3 | . . 3 . . Best Kill Streak 6 | 1 1 4 . 6 Combat Bots Only 5 | . 1 4 . 5 Max Kills in Single Turn 3 | 1 1 3 . 1 Gunslinging . | . . . . . Exploded 2 | . . 2 . . Melee 1 | . . . . 1 Uniques/NPCs Destroyed . | . . . . . Combat | -11 -10 -10 -8 -6 -------- Run | Yrd Mat Sub Scr Fac Hostile Shots Fired 307 | . 13 53 . 241 Missed 82 | . 2 14 . 66 Hits 225 | . 11 39 . 175 Melee 1 | . . . . 1 Projectile 224 | . 11 39 . 174 AOE 2 | . . . . 2 Critical Strikes 3 | . 1 . . 2 Damage Taken 3998 | . 160 739 31 3068 Core 495 | . 12 74 . 409 Absorbed by Shields . | . . . . . Core Remaining (%) 82 | 100 . . 65 . Volleys Fired 112 | 10 17 32 . 53 Largest 3 | 2 2 2 . 3 Hottest 186 | 90 90 90 . 186 Shots Fired 232 | 20 34 60 . 118 Gun 166 | 20 34 40 . 72 Cannon 46 | . . . . 46 Launcher 20 | . . 20 . . Special . | . . . . . Kinetic 74 | . . . . 74 Thermal 123 | 19 34 26 . 44 Explosive 20 | . . 20 . . Electromagnetic 15 | 1 . 14 . . Robot Hit Streak 22 | 13 7 5 . 22 Robot Miss Streak 4 | 2 3 4 . 3 Penetration Max . | . . . . . Secondary Targets . | . . . . . Shots Hit Robots 169 | 14 22 21 . 112 Core Hits 84 | 4 5 18 . 57 Critical Kills . | . . . . . Critical Parts Destroyed . | . . . . . Critical Strikes 6 | . . . . 6 Burn 1 | . . . . 1 Blast 2 | . . . . 2 Sever 3 | . . . . 3 Melee Attacks 23 | . . . . 23 Impact . | . . . . . Slashing 23 | . . . . 23 Piercing . | . . . . . Sneak Attacks 4 | . . . . 4 Combat Hostiles . | . . . . . Follow-up Attacks 4 | . . . . 4 Damage Inflicted 4752 | 172 264 868 5 3443 Guns 1952 | 172 264 178 . 1338 Cannons 1495 | . . . . 1495 Explosions 690 | . . 690 . . Melee 603 | . . . . 603 Ramming 12 | . . . 5 7 Kinetic 1867 | . . . . 1867 Thermal 1547 | 172 264 145 . 966 Explosive 690 | . . 690 . . Electromagnetic 33 | . . 33 . . Impact . | . . . . . Slashing 603 | . . . . 603 Piercing . | . . . . . Highest Corruption 3 | . 3 3 . 3 Average Corruption 2 | . 1 3 . 1 Corruption Purged . | . . . . . Corruption Blocked . | . . . . . Effects 20 | . 3 13 . 4 Message Errors 6 | . 1 4 . 1 Matter Fused 1 | . 1 . . . Heat Flow Errors 4 | . . 3 . 1 Energy Discharges 2 | . . 1 . 1 Parts Rejected 1 | . . 1 . . Parts Fused 1 | . . 1 . . Data Loss (minor) 2 | . . 2 . . Data Loss (major) 1 | . . . . 1 Misfires 1 | . . 1 . . Alerts 1 | . 1 . . . Overload Shots . | . . . . . Overflow Damage 308 | . . 24 . 284 Projectiles 156 | . . . . 156 Explosions 24 | . . 24 . . Melee 128 | . . . . 128 Knockbacks 13 | . . . . 13 Impact . | . . . . . Kinetic 12 | . . . . 12 Secondary 1 | . . . . 1 Self-Inflicted Damage 34 | . . 34 . . Shots 2 | . . 2 . . Rammed 2 | . . . 2 . Targets Rammed 4 | . . . 2 2 Kicked 2 | . . . . 2 Crushed . | . . . . . Highest Temperature 300 | 90 300 190 . 243 Average Temperature 75 | 33 90 84 . 80 Received Heat Transfer 843 | . 108 249 . 486 Siege Activations . | . . . . . Martial Activations . | . . . . . Shielding Activations . | . . . . . Robots Disrupted . | . . . . . Combat Hostiles . | . . . . . Robots Corrupted . | . . . . . Combat Hostiles . | . . . . . Parts Fried . | . . . . . Impact Corruptions . | . . . . . Robots Melted 2 | . 1 . . 1 Combat Hostiles 2 | . 1 . . 1 Parts Melted 5 | 1 2 . . 2 Heat Transferred 3553 | 446 671 396 . 2040 Parts Sabotaged 4 | . . . . 4 Parts Stolen . | . . . . . Parts Stripped . | . . . . . Power Chain Reactions . | . . . . . Alert | -11 -10 -10 -8 -6 ------- Run | Yrd Mat Sub Scr Fac Maximum Alert Level . | . . . . . Low Security (%) 100 | 100 100 . . 100 Level 1 . | . . . . . Level 2 . | . . . . . Level 3 . | . . . . . Level 4 . | . . . . . Level 5 . | . . . . . High Security . | . . . . . Max Security . | . . . . . Peak Influence 149 | 5 34 . . 149 Initial . | . . . . . Average 39 | . 6 . . 52 Influence Increases 907 | 15 91 160 . 641 Destroy 0b10 Robot/C 580 | . 40 120 . 420 Destroy 0b10 Robot/NC 55 | 15 5 . . 35 Destroy Leader 142 | . 12 10 . 120 Successful Hack 34 | . 34 . . . Destroy Structure 6 | . . . . 6 Lose Combat Pursuer 90 | . . 30 . 60 Influence Decreases 772 | 15 91 160 . 506 Time Decay 596 | 15 91 120 . 370 Lost Part 176 | . . 40 . 136 Squads Dispatched 9 | . 2 . . 7 Investigation 3 | . 1 . . 2 Extermination 3 | . . . . 3 Reinforcement 3 | . 1 . . 2 Assault . | . . . . . Garrison . | . . . . . Intercept . | . . . . . Searches Triggered . | . . . . . Construction Impeded . | . . . . . Haulers Reinforced . | . . . . . Active Scanning Responses . | . . . . . Cargo Convoy Interrupts 1 | . . . . 1 Stealth | -11 -10 -10 -8 -6 --------- Run | Yrd Mat Sub Scr Fac Distress Signals 3 | . 1 . . 2 Communications Jammed . | . . . . . Distress Signals . | . . . . . Times Spotted 57 | . 7 11 5 34 Peak Tracking Total 5 | . 4 4 5 5 Tactical Retreats 5 | . . 1 . 4 Traps | -11 -10 -10 -8 -6 ------- Run | Yrd Mat Sub Scr Fac Traps Triggered 3 | . 2 1 . . Indirectly . | . . . . . Trap Hack Attempts . | . . . . . Triggered . | . . . . . Disarmed . | . . . . . Reprogrammed . | . . . . . Reused . | . . . . . Traps Extracted . | . . . . . Installed . | . . . . . Triggered . | . . . . . Machines | -11 -10 -10 -8 -6 ---------- Run | Yrd Mat Sub Scr Fac Machines Disabled . | . . . . . Max in Single Turn . | . . . . . Machines Repaired . | . . . . . Machines Dismantled . | . . . . . Machines Sabotaged . | . . . . . Overloaded Fab Kills . | . . . . . Hacking | -11 -10 -10 -8 -6 --------- Run | Yrd Mat Sub Scr Fac Machines Accessed 12 | . 3 1 6 2 Terminals 3 | . 3 . . . Fabricators . | . . . . . Repair Stations . | . . . . . Recycling Units 2 | . . . . 2 Scanalyzers . | . . . . . Garrison Access . | . . . . . Total Hacks 43 | . 14 4 17 8 Successful 33 | . 8 4 17 4 Failed 10 | . 6 . . 4 Catastrophic . | . . . . . Database Lockouts . | . . . . . Manual 12 | . 10 . . 2 Terminals 14 | . 14 . . . Fabricators . | . . . . . Repair Stations . | . . . . . Recycling Units 8 | . . . . 8 Scanalyzers . | . . . . . Garrison Access . | . . . . . Terminal Hacks 26 | . 5 4 17 . Record 14 | . . 4 10 . Part Schematic 1 | . 1 . . . Robot Analysis 7 | . . . 7 . Prototype ID Bank 3 | . 3 . . . Emergency Access Points 1 | . 1 . . . Fabricator Hacks . | . . . . . Repair Station Hacks . | . . . . . Recycling Unit Hacks 2 | . . . . 2 Report Inventory 1 | . . . . 1 Retrieve Components 1 | . . . . 1 Scanalyzer . | . . . . . Garrison Access Hacks . | . . . . . Unauthorized Hacks 5 | . 3 . . 2 Terminals 3 | . 3 . . . Botnet 3 | . 3 . . . Fabricators . | . . . . . Repair Stations . | . . . . . Recycling Units 2 | . . . . 2 Fedlink 2 | . . . . 2 Scanalyzers . | . . . . . Garrison Access . | . . . . . Data Cores Recovered . | . . . . . Used . | . . . . . Hacking Detections 4 | . 3 . . 1 Full Trace Events 2 | . 2 . . . Feedback Events . | . . . . . Feedback Blocked . | . . . . . Robot Schematics Acquired . | . . . . . Robots Built . | . . . . . Authchips . | . . . . . Time . | . . . . . Total Robot Build Rating . | . . . . . Part Schematics Acquired 1 | . 1 . . . Parts Built . | . . . . . Authchips . | . . . . . Time . | . . . . . Total Part Build Rating . | . . . . . Parts Repaired . | . . . . . Time . | . . . . . Parts Recycled . | . . . . . Recycled Matter . | . . . . . Retrieved Matter . | . . . . . Retrieved Components 2 | . . . . 2 Parts Scanalyzed . | . . . . . Part Schematics Acquired . | . . . . . Parts Damaged . | . . . . . Bothacking | -11 -10 -10 -8 -6 ------------ Run | Yrd Mat Sub Scr Fac Used RIF Installer . | . . . . . Robots Hacked . | . . . . . Non-combat . | . . . . . Combat . | . . . . . Robot Hacks Applied . | . . . . . Relay Couplers Released . | . . . . . Fabnet Peak Effective % . | . . . . . Robots Rewired . | . . . . . Allies Hacked . | . . . . . Hacks Repelled . | . . . . . Allies | -11 -10 -10 -8 -6 -------- Run | Yrd Mat Sub Scr Fac Total Allies . | . . . . . Largest Group . | . . . . . Highest-Rated Group . | . . . . . Highest-Rated Ally . | . . . . . Total Orders . | . . . . . Ally Attacks . | . . . . . Total Damage . | . . . . . Kills . | . . . . . Allies Corrupted . | . . . . . Allies Melted . | . . . . . Intel | -11 -10 -10 -8 -6 ------- Run | Yrd Mat Sub Scr Fac Active Infowar (turns) 5719 | 21 445 468 3058 1727 Optics 1185 | . . . . 1185 Terrain 4134 | . . 404 3058 672 Seismic 1159 | 21 445 64 . 629 Robot Analysis Total 7 | . . . 7 . Derelict Logs Recovered 1 | . . . 1 . Drone Launches . | . . . . . Drone Recoveries . | . . . . . Exploration | -11 -10 -10 -8 -6 ------------- Run | Yrd Mat Sub Scr Fac Turns Passed 6139 | 182 445 727 3058 1727 Spaces Moved 3816 | 137 402 334 1948 995 Core 5 | 5 . . . . Treads 2652 | 13 . 295 1948 396 Legs 599 | . . . . 599 Wheels 560 | 119 402 39 . . Hover . | . . . . . Flight . | . . . . . Fastest Speed 50 | 50 90 90 152 90 Average Speed 141 | 95 90 152 155 138 Slowest Speed 260 | 160 90 160 160 260 Overloaded Moves . | . . . . . Propulsion Burnouts . | . . . . . Robots Hopped . | . . . . . Potential Cave-ins . | . . . . . Cave-ins Triggered . | . . . . . Exploration Rate (%) 35 | 7 46 22 90 12 Regions Visited 4 Branch Regions 2 Pre-discovered Areas 1 | . . . . 1 Known Exits Taken . | . . . . . Unknown Exits Taken 4 | 1 1 1 1 . Scrap Searched 5 | . . . 5 . Spaces Dug . | . . . . . Terrain Destroyed 88 | . . 86 . 2 Melee . | . . . . . Projectile 2 | . . . . 2 AOE 86 | . . 86 . . Terrain Rammed . | . . . . . Walls Destroyed . | . . . . . Machines Disabled . | . . . . . Actions | -11 -10 -10 -8 -6 --------- Run | Yrd Mat Sub Scr Fac Total 4294 | 164 452 488 1986 1204 Wait 204 | . 29 100 . 75 Move 3812 | 136 401 333 1947 995 Hop . | . . . . . Pick Up 36 | 7 2 4 11 12 Fast Attach 31 | 7 . 2 4 18 Attach 16 | 1 . 5 1 9 Detach 5 | 1 . 2 . 2 Swap 25 | 2 1 8 5 9 Drop 33 | . 2 2 16 13 Fire 112 | 10 17 32 . 53 Melee 16 | . . . . 16 Ram . | . . . . . Kick 2 | . . . . 2 Crush 2 | . . . 2 . Escape Stasis . | . . . . . Rewire . | . . . . . Trap . | . . . . . Miscellaneous . | . . . . . Route ------- -11/Scrapyard -10/Materials (discovered 3 exits: [*Mat] / [*Min] / *Sub) -10/Subcaves (discovered 2 exits: [*Mat] / *Scr) -8/Scraptown (discovered 2 exits: *Fac x2) -6/Factory History --------- Turn | Location | Event 51 | -11/Scrapyard | Discovered new exit (range 15) 183 | -11/Scrapyard | Entered Materials 297 | -10/Materials | Discovered new exit (range 3) 315 | -10/Materials | Build established: Mutant 583 | -10/Materials | Discovered new exit (range 16) 620 | -10/Materials | Discovered new exit (range 10) 628 | -10/Materials | Entered Subcaves 629 | -10/Subcaves | Approached by a straggling Scientist 845 | -10/Subcaves | Scientist uncovered a shortcut to Scraptown 869 | -10/Subcaves | Ambushed by angry Subdweller bent on revenge 1091 | -10/Subcaves | Discovered new exit (range 9) 1122 | -10/Subcaves | Visited Clippyterm 1127 | -10/Subcaves | Learned Factory trap positions 1127 | -10/Subcaves | Learned Factory garrison access intel 1194 | -10/Subcaves | Disturbed a concealed Subdweller 1215 | -10/Subcaves | Ambushed by Subdweller buried in earth 1355 | -10/Subcaves | Entered Scraptown 1355 | -8/Scraptown | System corruption cleaned by C-Scrubber 1634 | -8/Scraptown | Visited Spacefarers 1803 | -8/Scraptown | Visited UFD Registry 1803 | -8/Scraptown | Registered with UFD as "Alphaeater" 1840 | -8/Scraptown | Visited IN-MT5's Study 1901 | -8/Scraptown | Visited Cyclists 1920 | -8/Scraptown | Entered Cyclist Reading Room 1987 | -8/Scraptown | Visited Red Mages 2372 | -8/Scraptown | Discovered new exit (range 13) 2398 | -8/Scraptown | Scanned Subdweller tech in exchange for log data 2404 | -8/Scraptown | Learned Factory emergency access door positions 2468 | -8/Scraptown | Visited Comm Corps 2484 | -8/Scraptown | Visited Cave Peace 2611 | -8/Scraptown | Visited DA-N13 Charitable Foundation 2617 | -8/Scraptown | Found DCF Scrap (29 items) 2767 | -8/Scraptown | Visited Curators Association 2799 | -8/Scraptown | Visited Junk Repository 2884 | -8/Scraptown | Visited Derelict Rescue Squad 2896 | -8/Scraptown | Found DRS Beacon 2917 | -8/Scraptown | Build established: Derelict-Mutant 2941 | -8/Scraptown | Visited Research Penetration Think Tank 2976 | -8/Scraptown | Visited Analyses Database 3016 | -8/Scraptown | Visited Science Testing Area 3052 | -8/Scraptown | Visited A0-MCA Data Center 3061 | -8/Scraptown | Given a B+ rating by A0-MCA 3068 | -8/Scraptown | Found A0-MCA's Component Scanner 3109 | -8/Scraptown | Visited Junk Cannon Lab 3131 | -8/Scraptown | Found Prototype Special Weapon 3131 | -8/Scraptown | Identified Junk Cannon 3185 | -8/Scraptown | Visited Abandonware Association 3636 | -8/Scraptown | Discovered new exit (range 5) 4309 | -8/Scraptown | Met Optimus 4309 | -8/Scraptown | Accepted into 0bPrime 4405 | -8/Scraptown | Civil war broke out across Scraptown 4413 | -8/Scraptown | Entered Factory 4413 | -6/Factory | Evolved 8 slots: Propulsion x2, Utility x5, Weapon x1 4414 | -6/Factory | Loaded intel: 128 trap records 4416 | -6/Factory | Loaded intel: 4 garrison access locations 4722 | -6/Factory | Build established: Derelict-Tank 4831 | -6/Factory | Loaded intel: 8 recycling unit locations 4966 | -6/Factory | Learned location of Protoforge (-2) 5116 | -6/Factory | Lost 3 parts (2u1w) 5235 | -6/Factory | Cargo convoy interrupted 5303 | -6/Factory | Lost 4 parts (1n2u1w) 5690 | -6/Factory | Lost 3 parts (1n1u1w) 5954 | -6/Factory | Build established: Scavenger-Mutant 6140 | -6/Factory | Self-destructed Last Messages --------------- 05998_ Sneak attack on K-01 Serf. 05998_ Destroyed Lgt. Ion Engine. 05998_ K-01 Serf destroyed. 06017_ Sneak attack on O-24 Administrator. 06017_ Destroyed Imp. Hover Unit. 06017_ Sneak attack on O-24 Administrator. 06017_ Scythe follow-up attack on O-24 Administrator. 06017_ Destroyed System Restoration Module. 06017_ O-24 Administrator destroyed. 06056_ ALERT: Potential suspicious activity detected, Programmers report to Factory Zone 8D. 06089_ QD>WM9/ SUPNGU#DVZ=0 N2H3X Q >6H5Z 06104_ System corrupted: Substantial component data lost. 06114_ Imp. VSS Leg destroyed. 06121_ Door malfunctions. 06123_ Component scanned: Coolant Injector. 06139_ Acquired Coolant Injector. Map ----- +----------------------------------------------------+ | | | | | | | | | | | | | | | | | | | | | | | | | | | | | | | | | | | | | ???????????????????????###########???????????????? | | ???????????????????????# ????????????????? | | ???????????????????????# """""" ??????????????? | | ???????????????????????# """""" #????????????? | | ???????????????????????# """""" #????????????? | | ???????????????????????# """""" #????????????? | | ??????#????????????????# #????????????? | | ???????????????????????# @ """""" #????????????? | | ?????????????#?????????# """""" #????????????? | | ???????????????????????# """""" #????????????? | | #####??????????????????# p"""""" #########????? | | #????#?????????????# # #????? | | ###########????????# # #????? | | # #????????#/#####g###### #????? | | # #????????#g#?# + #????? | | # #????????#g#?# #### #????? | | # """ """ #?#?????? ??# #??# #????? | | # """ """ #???????? ??# #??# #????? | | # """ """ #???????? ??+ #??# #????? | | # #????????""??# #??# #????? | | # ##???????""??# #??# #????? | | ####+#######?????? ""??# #??# #????? | | # ########?? ??# #??# #????? | | ##### #?? ????# #??# #????? | | #???????+ #??# #????? | | #???????# #??# #????? | | ^^^^ #???????# #??# #????? | | ##### ^^#?????### #### #??? | | ????# ## #?#???# ####/###### | | ?#?#### #### ####### | | #?#???# #??# ^^ | | ??????# #??# ^ ^ | +----------------------------------------------------+ Best States ------------- Heat Dissipation 86 Coolant Potential 65 Energy Generation 16 Energy Capacity 290 Matter Stores 300 Matter Capacity 300 Sight Range 22 Terrain Scan Range 16 Terrain Scan Density 10 Armor Coverage 600 Evasion (%) 57 Targeting Accuracy 6 Recoil Reduction 2 Item Schematics ----------------- Hcp. Storage Unit | -10/Materials | Hacked Robot Schematics ------------------ None Fabricated ------------ Nothing Repaired ---------- Nothing Alien Tech Used ----------------- None Achievements -------------- None Challenges ------------ None Game ------ Seed TerrorWaveDeconstructor Manual? 0 Play Time 00:49:05 Cumulative 50.6 hours Start 2025.08.07 @ 12:45:10 End 2025.08.07 @ 13:34:33 Sessions 1 Manual Loads 0 Difficulty Rogue Special Mode None Game No. 22 Rogue 8 Adventurer 14 Explorer 0 Win Type - Total 4 Types 1/0/2/0/0/0/0/1/0/0 Lore% 44 Gallery% 40 Achievement% 41 Wizard Run 0 Options --------- Layout 2 ASCII 0 Keyboard 1 Movement Arrows Keybinds 0 Fullscreen 2 Font 24/Smallcaps Map View 50x44 Zoom Use 0% Tactical HUD 1 Map Filters NONE Filters NONE Steam 1 RUN: aa98d344-e133-49ea-99c2-0dacc9f3865c